[Event "Titled Tuesday Blitz November 01 Early 2022"]
[White "De Souza, Cristiano Gomes"]
[Black "Goroshkov, Maksym"]
[WhiteFideId "2151758"]
[BlackFideId "14142716"]
[WhiteElo "2068"]
[BlackElo "2257"]
[Result "0-1"]
[Round "07"]
[TimeControl "180+1"]
[Date "2022.11.02"]
[WhiteClock "0:01:37"]
[BlackClock "0:01:59"]

1. d4 {[%clk 0:03:00]}  Nf6 {[%clk 0:02:59]} 2. c4 {[%clk 0:03:00]}  e5 {[%clk 0:02:58]} 3. dxe5 {[%clk 0:02:59]}  Ng4 {[%clk 0:02:59]} 4. Bf4 {[%clk 0:02:53]}  Nc6 {[%clk 0:02:59]} 5. Nf3 {[%clk 0:02:53]}  Bb4+ {[%clk 0:02:59]} 6. Nbd2 {[%clk 0:02:53]}  Qe7 {[%clk 0:02:59]} 7. e3 {[%clk 0:02:50]}  Ngxe5 {[%clk 0:03:00]} 8. Nxe5 {[%clk 0:02:50]}  Nxe5 {[%clk 0:03:01]} 9. Be2 {[%clk 0:02:50]}  Bxd2+ {[%clk 0:02:53]} 10. Qxd2 {[%clk 0:02:50]}  d6 {[%clk 0:02:51]} 11. Qc3 {[%clk 0:02:50]}  b6 {[%clk 0:02:49]} 12. c5 {[%clk 0:02:49]}  bxc5 {[%clk 0:02:44]} 13. Bb5+ {[%clk 0:02:47]}  Bd7 {[%clk 0:02:43]} 14. Bxd7+ {[%clk 0:02:46]}  Kxd7 {[%clk 0:02:33]} 15. Rd1 {[%clk 0:02:32]}  f6 {[%clk 0:02:31]} 16. O-O {[%clk 0:02:29]}  Qe6 {[%clk 0:02:26]} 17. Qxc5 {[%clk 0:02:23]}  Rhb8 {[%clk 0:02:24]} 18. b3 {[%clk 0:02:19]}  Rb7 {[%clk 0:02:18]} 19. Bxe5 {[%clk 0:02:17]}  Qxe5 {[%clk 0:02:15]} 20. Qxe5 {[%clk 0:02:14]}  fxe5 {[%clk 0:02:16]} 21. Rd2 {[%clk 0:02:11]}  a5 {[%clk 0:02:13]} 22. Rc1 {[%clk 0:02:08]}  a4 {[%clk 0:02:13]} 23. bxa4 {[%clk 0:02:07]}  Rxa4 {[%clk 0:02:13]} 24. Rdc2 {[%clk 0:02:07]}  Rba7 {[%clk 0:02:12]} 25. Kf1 {[%clk 0:02:06]}  Rxa2 {[%clk 0:02:10]} 26. f4 {[%clk 0:01:58]}  Rxc2 {[%clk 0:02:08]} 27. Rxc2 {[%clk 0:01:58]}  exf4 {[%clk 0:02:08]} 28. exf4 {[%clk 0:01:58]}  c5 {[%clk 0:02:06]} 29. Ke2 {[%clk 0:01:57]}  Ra3 {[%clk 0:02:04]} 30. g4 {[%clk 0:01:57]}  Kc6 {[%clk 0:02:03]} 31. Kf2 {[%clk 0:01:56]}  d5 {[%clk 0:02:03]} 32. h4 {[%clk 0:01:54]}  d4 {[%clk 0:02:03]} 33. h5 {[%clk 0:01:53]}  Kd5 {[%clk 0:02:03]} 34. Re2 {[%clk 0:01:52]}  Ra7 {[%clk 0:02:01]} 35. Re8 {[%clk 0:01:49]}  c4 {[%clk 0:02:00]} 36. Rd8+ {[%clk 0:01:46]}  Ke4 {[%clk 0:02:00]} 37. Kg3 {[%clk 0:01:44]}  d3 {[%clk 0:01:59]} 38. Re8+ {[%clk 0:01:43]}  Kd4 {[%clk 0:01:59]} 39. g5 {[%clk 0:01:40]}  c3 {[%clk 0:01:58]} 40. Rd8+ {[%clk 0:01:39]}  Ke3 {[%clk 0:01:57]} 41. Re8+ {[%clk 0:01:38]}  Kd2 {[%clk 0:01:58]} 42. f5 {[%clk 0:01:38]}  c2 {[%clk 0:01:58]} 43. Rc8 {[%clk 0:01:36]}  c1=Q {[%clk 0:01:58]} 44. Rxc1 {[%clk 0:01:37]}  Kxc1 {[%clk 0:01:59]} 0-1


[Site "https://www.chess.com"]

[Event "Titled Tuesday Blitz November 01 Early 2022"]
[White "Deac, Bogdan-Daniel"]
[Black "Sarana, Alexey"]
[WhiteFideId "1226380"]
[BlackFideId "24133795"]
[WhiteElo "2648"]
[BlackElo "2689"]
[Result "0-1"]
[Round "07"]
[TimeControl "180+1"]
[Date "2022.11.01"]
[WhiteClock "0:00:08"]
[BlackClock "0:01:19"]

1. d4 {[%clk 0:03:00]}  Nf6 {[%clk 0:03:00]} 2. c4 {[%clk 0:03:01]}  e6 {[%clk 0:02:59]} 3. Nf3 {[%clk 0:03:01]}  d5 {[%clk 0:03:00]} 4. Nc3 {[%clk 0:03:02]}  Nbd7 {[%clk 0:03:00]} 5. e3 {[%clk 0:03:02]}  a6 {[%clk 0:02:59]} 6. b3 {[%clk 0:03:02]}  b6 {[%clk 0:02:59]} 7. Bb2 {[%clk 0:03:00]}  Bb7 {[%clk 0:02:59]} 8. cxd5 {[%clk 0:03:00]}  exd5 {[%clk 0:02:59]} 9. g3 {[%clk 0:03:01]}  Bd6 {[%clk 0:02:58]} 10. Bg2 {[%clk 0:03:01]}  O-O {[%clk 0:02:59]} 11. O-O {[%clk 0:03:00]}  Re8 {[%clk 0:02:59]} 12. Rc1 {[%clk 0:03:00]}  Rc8 {[%clk 0:02:59]} 13. Ne2 {[%clk 0:02:58]}  Qe7 {[%clk 0:02:56]} 14. Nf4 {[%clk 0:02:57]}  Ne4 {[%clk 0:02:54]} 15. h4 {[%clk 0:02:44]}  h6 {[%clk 0:02:46]} 16. Re1 {[%clk 0:02:36]}  Rcd8 {[%clk 0:02:31]} 17. Bh3 {[%clk 0:02:30]}  g5 {[%clk 0:02:22]} 18. Nd3 {[%clk 0:02:13]}  f6 {[%clk 0:02:20]} 19. Bf5 {[%clk 0:01:25]}  Nf8 {[%clk 0:02:19]} 20. hxg5 {[%clk 0:01:20]}  hxg5 {[%clk 0:02:18]} 21. Nh2 {[%clk 0:00:49]}  Bc8 {[%clk 0:02:14]} 22. Bxc8 {[%clk 0:00:45]}  Rxc8 {[%clk 0:02:14]} 23. Qh5 {[%clk 0:00:45]}  Qh7 {[%clk 0:02:05]} 24. Qxh7+ {[%clk 0:00:42]}  Kxh7 {[%clk 0:02:06]} 25. Kg2 {[%clk 0:00:37]}  Kg6 {[%clk 0:02:04]} 26. g4 {[%clk 0:00:30]}  Ne6 {[%clk 0:01:46]} 27. Nf1 {[%clk 0:00:25]}  Rh8 {[%clk 0:01:45]} 28. Rcd1 {[%clk 0:00:13]}  Rh4 {[%clk 0:01:36]} 29. f3 {[%clk 0:00:13]}  Rch8 {[%clk 0:01:37]} 30. fxe4 {[%clk 0:00:10]}  Rxg4+ {[%clk 0:01:37]} 31. Kf3 {[%clk 0:00:10]}  dxe4+ {[%clk 0:01:37]} 32. Ke2 {[%clk 0:00:09]}  exd3+ {[%clk 0:01:29]} 33. Kxd3 {[%clk 0:00:09]}  Rh3 {[%clk 0:01:29]} 34. Kc2 {[%clk 0:00:09]}  f5 {[%clk 0:01:28]} 35. Rd2 {[%clk 0:00:08]}  Re4 {[%clk 0:01:22]} 36. Rde2 {[%clk 0:00:07]}  Bb4 {[%clk 0:01:20]} 37. Nd2 {[%clk 0:00:07]}  Bxd2 {[%clk 0:01:19]} 38. Kxd2 {[%clk 0:00:08]}  g4 {[%clk 0:01:19]} 0-1


[Site "https://www.chess.com"]

[Event "Titled Tuesday Blitz November 01 Early 2022"]
[White "Deev, Andrei"]
[Black "Buscar, Michael"]
[WhiteFideId "4102690"]
[BlackFideId "2603616"]
[WhiteElo "2328"]
[BlackElo "2010"]
[Result "0-1"]
[Round "07"]
[TimeControl "180+1"]
[Date "2022.11.02"]
[WhiteClock "0:00:00"]
[BlackClock "0:00:11"]

1. e4 {[%clk 0:03:00]}  c5 {[%clk 0:02:57]} 2. Nf3 {[%clk 0:03:00]}  Nc6 {[%clk 0:02:57]} 3. c3 {[%clk 0:03:00]}  Nf6 {[%clk 0:02:57]} 4. e5 {[%clk 0:03:00]}  Nd5 {[%clk 0:02:58]} 5. d4 {[%clk 0:03:01]}  cxd4 {[%clk 0:02:58]} 6. cxd4 {[%clk 0:03:01]}  d6 {[%clk 0:02:59]} 7. Nc3 {[%clk 0:03:02]}  e6 {[%clk 0:02:58]} 8. Bd2 {[%clk 0:02:59]}  Be7 {[%clk 0:02:58]} 9. Bd3 {[%clk 0:02:59]}  Nxc3 {[%clk 0:02:55]} 10. Bxc3 {[%clk 0:02:57]}  Bd7 {[%clk 0:02:47]} 11. O-O {[%clk 0:02:56]}  Qb6 {[%clk 0:02:47]} 12. Qe2 {[%clk 0:02:53]}  Nb4 {[%clk 0:02:34]} 13. Bxb4 {[%clk 0:02:25]}  Qxb4 {[%clk 0:02:33]} 14. d5 {[%clk 0:02:21]}  O-O {[%clk 0:02:25]} 15. a3 {[%clk 0:02:10]}  Qg4 {[%clk 0:02:17]} 16. dxe6 {[%clk 0:02:01]}  Bxe6 {[%clk 0:02:10]} 17. Qe4 {[%clk 0:01:42]}  Qxe4 {[%clk 0:02:05]} 18. Bxe4 {[%clk 0:01:43]}  dxe5 {[%clk 0:01:55]} 19. Nxe5 {[%clk 0:01:32]}  Bf6 {[%clk 0:01:53]} 20. Nd3 {[%clk 0:01:22]}  Bc4 {[%clk 0:01:31]} 21. Rfd1 {[%clk 0:01:12]}  Rad8 {[%clk 0:01:28]} 22. Rac1 {[%clk 0:00:49]}  b5 {[%clk 0:01:26]} 23. b4 {[%clk 0:00:41]}  Rd4 {[%clk 0:01:23]} 24. Nc5 {[%clk 0:00:37]}  Rfd8 {[%clk 0:01:18]} 25. Rxd4 {[%clk 0:00:30]}  Bxd4 {[%clk 0:01:18]} 26. Rb1 {[%clk 0:00:15]}  g6 {[%clk 0:01:13]} 27. g3 {[%clk 0:00:13]}  f5 {[%clk 0:01:02]} 28. Bc6 {[%clk 0:00:13]}  Bc3 {[%clk 0:00:57]} 29. a4 {[%clk 0:00:13]}  Ba2 {[%clk 0:00:41]} 30. Rc1 {[%clk 0:00:11]}  Bxb4 {[%clk 0:00:38]} 31. axb5 {[%clk 0:00:11]}  Rd2 {[%clk 0:00:30]} 32. Nd7 {[%clk 0:00:10]}  Kg7 {[%clk 0:00:20]} 33. Ne5 {[%clk 0:00:10]}  Ba5 {[%clk 0:00:15]} 34. Nf3 {[%clk 0:00:09]}  Rb2 {[%clk 0:00:15]} 35. Nd4 {[%clk 0:00:08]}  Bb6 {[%clk 0:00:14]} 36. Rd1 {[%clk 0:00:08]}  Bb3 {[%clk 0:00:11]} 37. Rd3 {[%clk 0:00:08]}  Bc4 {[%clk 0:00:11]} 38. Rd1 {[%clk 0:00:07]}  Bxd4 {[%clk 0:00:10]} 39. Rxd4 {[%clk 0:00:06]}  Bxb5 {[%clk 0:00:10]} 40. Bxb5 {[%clk 0:00:06]}  Rxb5 {[%clk 0:00:10]} 41. Rd7+ {[%clk 0:00:07]}  Kh6 {[%clk 0:00:10]} 42. Rxa7 {[%clk 0:00:08]}  Rb1+ {[%clk 0:00:10]} 43. Kg2 {[%clk 0:00:08]}  Rb2 {[%clk 0:00:11]} 44. Rc7 {[%clk 0:00:08]}  Rb3 {[%clk 0:00:11]} 45. Rd7 {[%clk 0:00:08]}  Rb8 {[%clk 0:00:12]} 46. Re7 {[%clk 0:00:08]}  Rh8 {[%clk 0:00:12]} 47. Rd7 {[%clk 0:00:09]}  Kg5 {[%clk 0:00:12]} 48. h4+ {[%clk 0:00:08]}  Kf6 {[%clk 0:00:12]} 49. f3 {[%clk 0:00:07]}  h6 {[%clk 0:00:12]} 50. Kh3 {[%clk 0:00:07]}  Re8 {[%clk 0:00:12]} 51. Rd6+ {[%clk 0:00:08]}  Kf7 {[%clk 0:00:12]} 52. g4 {[%clk 0:00:07]}  f4 {[%clk 0:00:11]} 53. g5 {[%clk 0:00:06]}  h5 {[%clk 0:00:10]} 54. Rf6+ {[%clk 0:00:05]}  Kg7 {[%clk 0:00:09]} 55. Rxf4 {[%clk 0:00:05]}  Re1 {[%clk 0:00:10]} 56. Re4 {[%clk 0:00:05]}  Rh1+ {[%clk 0:00:10]} 57. Kg3 {[%clk 0:00:06]}  Rg1+ {[%clk 0:00:11]} 58. Kf2 {[%clk 0:00:06]}  Rh1 {[%clk 0:00:11]} 59. Kg2 {[%clk 0:00:03]}  Ra1 {[%clk 0:00:11]} 60. Re7+ {[%clk 0:00:04]}  Kg8 {[%clk 0:00:11]} 61. Rb7 {[%clk 0:00:04]}  Ra4 {[%clk 0:00:10]} 62. Kg3 {[%clk 0:00:04]}  Rc4 {[%clk 0:00:10]} 63. Rb6 {[%clk 0:00:04]}  Kg7 {[%clk 0:00:10]} 64. Re6 {[%clk 0:00:04]}  Rd4 {[%clk 0:00:09]} 65. Re4 {[%clk 0:00:04]}  Rd3 {[%clk 0:00:10]} 66. Kf4 {[%clk 0:00:04]}  Rd1 {[%clk 0:00:10]} 67. Ke5 {[%clk 0:00:03]}  Kf7 {[%clk 0:00:11]} 68. Rf4+ {[%clk 0:00:02]}  Kg7 {[%clk 0:00:11]} 69. Re4 {[%clk 0:00:02]}  Rf1 {[%clk 0:00:10]} 70. Rf4 {[%clk 0:00:02]}  Re1+ {[%clk 0:00:10]} 71. Re4 {[%clk 0:00:02]}  Rh1 {[%clk 0:00:11]} 72. Rf4 {[%clk 0:00:01]}  Re1+ {[%clk 0:00:11]} 73. Re4 {[%clk 0:00:00]}  Ra1 {[%clk 0:00:11]} 0-1


[Site "https://www.chess.com"]

[Event "Titled Tuesday Blitz November 01 Early 2022"]
[White "Estrada Nieto, Julian"]
[Black "Fernandez Hernandez, Gerardo"]
[WhiteFideId "5101018"]
[BlackFideId "2207400"]
[WhiteElo "2252"]
[BlackElo "2238"]
[Result "1-0"]
[Round "07"]
[TimeControl "180+1"]
[Date "2022.11.02"]
[WhiteClock "0:00:23"]
[BlackClock "0:00:01"]

1. e4 {[%clk 0:03:00]}  e6 {[%clk 0:02:59]} 2. d4 {[%clk 0:02:58]}  d5 {[%clk 0:03:00]} 3. Nd2 {[%clk 0:02:58]}  Nc6 {[%clk 0:03:00]} 4. Ngf3 {[%clk 0:02:58]}  Nf6 {[%clk 0:03:00]} 5. e5 {[%clk 0:02:58]}  Nd7 {[%clk 0:02:59]} 6. Be2 {[%clk 0:02:53]}  f6 {[%clk 0:02:59]} 7. exf6 {[%clk 0:02:54]}  Qxf6 {[%clk 0:02:59]} 8. Nf1 {[%clk 0:02:54]}  Bd6 {[%clk 0:02:58]} 9. Ne3 {[%clk 0:02:54]}  O-O {[%clk 0:02:57]} 10. O-O {[%clk 0:02:54]}  Nb6 {[%clk 0:02:47]} 11. Ng4 {[%clk 0:02:54]}  Qg6 {[%clk 0:02:23]} 12. h3 {[%clk 0:02:53]}  Bd7 {[%clk 0:02:08]} 13. Bd3 {[%clk 0:02:47]}  Qh5 {[%clk 0:01:52]} 14. Nfe5 {[%clk 0:02:18]}  Be8 {[%clk 0:01:28]} 15. Be2 {[%clk 0:01:57]}  Qh4 {[%clk 0:01:11]} 16. Nf3 {[%clk 0:01:39]}  Qe7 {[%clk 0:00:45]} 17. Bg5 {[%clk 0:01:37]}  Qf7 {[%clk 0:00:33]} 18. c3 {[%clk 0:01:30]}  h6 {[%clk 0:00:26]} 19. Bxh6 {[%clk 0:01:29]}  Qg6 {[%clk 0:00:19]} 20. Bd3 {[%clk 0:01:21]}  Qh5 {[%clk 0:00:20]} 21. Be3 {[%clk 0:01:07]}  Bg6 {[%clk 0:00:17]} 22. Bxg6 {[%clk 0:01:00]}  Qxg6 {[%clk 0:00:18]} 23. Qb1 {[%clk 0:00:56]}  Qh5 {[%clk 0:00:18]} 24. Qd1 {[%clk 0:00:48]}  Rf7 {[%clk 0:00:17]} 25. Nfe5 {[%clk 0:00:47]}  Nxe5 {[%clk 0:00:16]} 26. Nf6+ {[%clk 0:00:45]}  Rxf6 {[%clk 0:00:13]} 27. Qxh5 {[%clk 0:00:46]}  Ng6 {[%clk 0:00:12]} 28. Rfe1 {[%clk 0:00:44]}  Raf8 {[%clk 0:00:12]} 29. Bg5 {[%clk 0:00:40]}  Nf4 {[%clk 0:00:10]} 30. Bxf4 {[%clk 0:00:34]}  Bxf4 {[%clk 0:00:11]} 31. Qg4 {[%clk 0:00:32]}  Re8 {[%clk 0:00:06]} 32. Re2 {[%clk 0:00:32]}  Nc4 {[%clk 0:00:06]} 33. Rae1 {[%clk 0:00:32]}  Kf7 {[%clk 0:00:06]} 34. Qh5+ {[%clk 0:00:31]}  Kf8 {[%clk 0:00:05]} 35. g3 {[%clk 0:00:29]}  Bh6 {[%clk 0:00:04]} 36. h4 {[%clk 0:00:29]}  Nd6 {[%clk 0:00:04]} 37. Qg4 {[%clk 0:00:26]}  Kf7 {[%clk 0:00:04]} 38. b3 {[%clk 0:00:25]}  Ne4 {[%clk 0:00:03]} 39. Qh5+ {[%clk 0:00:23]}  Rg6 {[%clk 0:00:01]} 40. Kg2 {[%clk 0:00:23]} 1-0


[Site "https://www.chess.com"]

[Event "Titled Tuesday Blitz November 01 Early 2022"]
[White "Fernandez De La Vara, Arnaldo"]
[Black "Svane, Rasmus"]
[WhiteFideId "3518388"]
[BlackFideId "4657101"]
[WhiteElo "2387"]
[BlackElo "2674"]
[Result "1/2-1/2"]
[Round "07"]
[TimeControl "180+1"]
[Date "2022.11.01"]
[WhiteClock "0:00:06"]
[BlackClock "0:00:02"]

1. Nf3 {[%clk 0:02:59]}  d5 {[%clk 0:03:00]} 2. c4 {[%clk 0:02:59]}  e6 {[%clk 0:02:57]} 3. b3 {[%clk 0:02:59]}  c5 {[%clk 0:02:57]} 4. Bb2 {[%clk 0:02:59]}  d4 {[%clk 0:02:56]} 5. g3 {[%clk 0:02:59]}  Nc6 {[%clk 0:02:56]} 6. Bg2 {[%clk 0:03:00]}  e5 {[%clk 0:02:57]} 7. O-O {[%clk 0:03:00]}  Bd6 {[%clk 0:02:56]} 8. d3 {[%clk 0:02:59]}  Nf6 {[%clk 0:02:56]} 9. a3 {[%clk 0:02:58]}  O-O {[%clk 0:02:52]} 10. b4 {[%clk 0:02:58]}  cxb4 {[%clk 0:02:53]} 11. axb4 {[%clk 0:02:55]}  Bxb4 {[%clk 0:02:53]} 12. Nbd2 {[%clk 0:02:55]}  a5 {[%clk 0:02:51]} 13. Ne1 {[%clk 0:02:55]}  Re8 {[%clk 0:02:51]} 14. Nc2 {[%clk 0:02:55]}  Bf8 {[%clk 0:02:50]} 15. Ba3 {[%clk 0:02:52]}  Bf5 {[%clk 0:02:35]} 16. Bxf8 {[%clk 0:02:36]}  Rxf8 {[%clk 0:02:36]} 17. Qb1 {[%clk 0:02:28]}  Qc7 {[%clk 0:02:35]} 18. Qb5 {[%clk 0:02:24]}  Rfb8 {[%clk 0:02:35]} 19. Rfb1 {[%clk 0:02:23]}  Bd7 {[%clk 0:02:20]} 20. Qb6 {[%clk 0:02:08]}  Qc8 {[%clk 0:02:20]} 21. Qc5 {[%clk 0:01:39]}  Bg4 {[%clk 0:02:09]} 22. Bxc6 {[%clk 0:01:21]}  Qxc6 {[%clk 0:02:01]} 23. Qxe5 {[%clk 0:01:21]}  Re8 {[%clk 0:01:58]} 24. Qf4 {[%clk 0:01:15]}  Bxe2 {[%clk 0:01:51]} 25. Nxd4 {[%clk 0:01:15]}  Qd7 {[%clk 0:01:52]} 26. Nxe2 {[%clk 0:00:59]}  Rxe2 {[%clk 0:01:53]} 27. Nb3 {[%clk 0:00:54]}  Ng4 {[%clk 0:01:26]} 28. Nc5 {[%clk 0:00:38]}  Qc8 {[%clk 0:01:26]} 29. Ne4 {[%clk 0:00:35]}  Rc2 {[%clk 0:00:37]} 30. h3 {[%clk 0:00:18]}  Nh6 {[%clk 0:00:38]} 31. g4 {[%clk 0:00:13]}  f5 {[%clk 0:00:38]} 32. Nd6 {[%clk 0:00:13]}  Qc6 {[%clk 0:00:28]} 33. Rxb7 {[%clk 0:00:13]}  Rf8 {[%clk 0:00:12]} 34. Rxg7+ {[%clk 0:00:08]}  Kxg7 {[%clk 0:00:12]} 35. Qg5+ {[%clk 0:00:08]}  Kh8 {[%clk 0:00:11]} 36. Qxh6 {[%clk 0:00:09]}  Qa8 {[%clk 0:00:07]} 37. Rxa5 {[%clk 0:00:05]}  Rc1+ {[%clk 0:00:06]} 38. Qxc1 {[%clk 0:00:05]}  Qxa5 {[%clk 0:00:06]} 39. Qb2+ {[%clk 0:00:02]}  Kg8 {[%clk 0:00:05]} 40. Nxf5 {[%clk 0:00:03]}  Rf7 {[%clk 0:00:01]} 41. Nh6+ {[%clk 0:00:03]}  Kf8 {[%clk 0:00:01]} 42. Qh8+ {[%clk 0:00:03]}  Ke7 {[%clk 0:00:02]} 43. Nxf7 {[%clk 0:00:03]}  Qe1+ {[%clk 0:00:02]} 44. Kg2 {[%clk 0:00:03]}  Kxf7 {[%clk 0:00:03]} 45. Qxh7+ {[%clk 0:00:04]}  Kf8 {[%clk 0:00:04]} 46. Qf5+ {[%clk 0:00:04]}  Kg8 {[%clk 0:00:04]} 47. h4 {[%clk 0:00:05]}  Qe2 {[%clk 0:00:04]} 48. h5 {[%clk 0:00:05]}  Qe7 {[%clk 0:00:02]} 49. h6 {[%clk 0:00:05]}  Qf7 {[%clk 0:00:02]} 50. Qxf7+ {[%clk 0:00:05]}  Kh8 {[%clk 0:00:02]} 51. Kf3 {[%clk 0:00:06]} 1/2-1/2


[Site "https://www.chess.com"]

[Event "Titled Tuesday Blitz November 01 Early 2022"]
[White "Fernandez Siles, Luis"]
[Black "Namitbir Singh Walia"]
[WhiteFideId "2209420"]
[BlackFideId "35071068"]
[WhiteElo "2186"]
[BlackElo "2239"]
[Result "1-0"]
[Round "07"]
[TimeControl "180+1"]
[Date "2022.11.02"]
[WhiteClock "0:00:16"]
[BlackClock "0:00:17"]

1. e4 {[%clk 0:03:00]}  c5 {[%clk 0:03:00]} 2. Nf3 {[%clk 0:03:00]}  Nc6 {[%clk 0:03:01]} 3. d4 {[%clk 0:03:00]}  cxd4 {[%clk 0:03:02]} 4. Nxd4 {[%clk 0:03:00]}  g6 {[%clk 0:03:03]} 5. c4 {[%clk 0:02:58]}  Nf6 {[%clk 0:03:03]} 6. Nc3 {[%clk 0:02:57]}  Nxd4 {[%clk 0:03:03]} 7. Qxd4 {[%clk 0:02:57]}  d6 {[%clk 0:03:04]} 8. Be2 {[%clk 0:02:52]}  Bg7 {[%clk 0:03:04]} 9. Be3 {[%clk 0:02:49]}  O-O {[%clk 0:03:05]} 10. Qd2 {[%clk 0:02:49]}  Qa5 {[%clk 0:03:05]} 11. f3 {[%clk 0:02:46]}  Be6 {[%clk 0:03:05]} 12. b3 {[%clk 0:02:45]}  a6 {[%clk 0:02:54]} 13. Rc1 {[%clk 0:02:41]}  Rfc8 {[%clk 0:02:53]} 14. Na4 {[%clk 0:02:36]}  Qxd2+ {[%clk 0:02:50]} 15. Kxd2 {[%clk 0:02:37]}  Nd7 {[%clk 0:02:47]} 16. g4 {[%clk 0:02:20]}  Rab8 {[%clk 0:02:46]} 17. h4 {[%clk 0:02:04]}  f5 {[%clk 0:02:29]} 18. exf5 {[%clk 0:01:55]}  gxf5 {[%clk 0:02:30]} 19. g5 {[%clk 0:01:55]}  d5 {[%clk 0:02:17]} 20. cxd5 {[%clk 0:01:50]}  Bxd5 {[%clk 0:02:16]} 21. Nb6 {[%clk 0:01:30]}  Nxb6 {[%clk 0:02:11]} 22. Bxb6 {[%clk 0:01:31]}  Bb2 {[%clk 0:02:00]} 23. Rc5 {[%clk 0:01:02]}  e6 {[%clk 0:01:50]} 24. Rb1 {[%clk 0:00:43]}  Be5 {[%clk 0:01:38]} 25. Ke3 {[%clk 0:00:31]}  Bd6 {[%clk 0:01:35]} 26. Rxc8+ {[%clk 0:00:25]}  Rxc8 {[%clk 0:01:36]} 27. Bd3 {[%clk 0:00:19]}  Kf7 {[%clk 0:01:05]} 28. f4 {[%clk 0:00:19]}  Kg6 {[%clk 0:00:57]} 29. Bd4 {[%clk 0:00:19]}  Kh5 {[%clk 0:00:51]} 30. Be2+ {[%clk 0:00:19]}  Kxh4 {[%clk 0:00:46]} 31. Bf3 {[%clk 0:00:19]}  Bxf3 {[%clk 0:00:40]} 32. Kxf3 {[%clk 0:00:20]}  Kh5 {[%clk 0:00:23]} 33. Rh1+ {[%clk 0:00:19]}  Kg6 {[%clk 0:00:23]} 34. Rh6+ {[%clk 0:00:19]}  Kf7 {[%clk 0:00:23]} 35. Rxh7+ {[%clk 0:00:19]}  Kg6 {[%clk 0:00:23]} 36. Rh6+ {[%clk 0:00:16]}  Kf7 {[%clk 0:00:23]} 37. g6+ {[%clk 0:00:16]}  Ke7 {[%clk 0:00:17]} 38. Rh7+ {[%clk 0:00:16]}  Kd8 {[%clk 0:00:17]} 39. Rh8+ {[%clk 0:00:16]} 1-0


[Site "https://www.chess.com"]

[Event "Titled Tuesday Blitz November 01 Early 2022"]
[White "Fier, Alexandr"]
[Black "Dushyant Sharma"]
[WhiteFideId "2107139"]
[BlackFideId "25065130"]
[WhiteElo "2607"]
[BlackElo "2270"]
[Result "1-0"]
[Round "07"]
[TimeControl "180+1"]
[Date "2022.11.02"]
[WhiteClock "0:01:44"]
[BlackClock "0:00:14"]

1. d4 {[%clk 0:03:00]}  d5 {[%clk 0:03:00]} 2. Bg5 {[%clk 0:03:01]}  h6 {[%clk 0:02:53]} 3. Bh4 {[%clk 0:03:00]}  Nf6 {[%clk 0:02:53]} 4. Bxf6 {[%clk 0:02:59]}  exf6 {[%clk 0:02:54]} 5. e3 {[%clk 0:02:58]}  Bd6 {[%clk 0:02:53]} 6. c4 {[%clk 0:02:56]}  dxc4 {[%clk 0:02:53]} 7. Bxc4 {[%clk 0:02:57]}  Nd7 {[%clk 0:02:51]} 8. Qf3 {[%clk 0:02:57]}  Nb6 {[%clk 0:02:49]} 9. Bb3 {[%clk 0:02:57]}  Qe7 {[%clk 0:02:48]} 10. Ne2 {[%clk 0:02:56]}  c6 {[%clk 0:02:48]} 11. Nbc3 {[%clk 0:02:56]}  Be6 {[%clk 0:02:49]} 12. Bxe6 {[%clk 0:02:56]}  fxe6 {[%clk 0:02:49]} 13. O-O {[%clk 0:02:50]}  O-O {[%clk 0:02:48]} 14. Rfd1 {[%clk 0:02:49]}  Rad8 {[%clk 0:02:47]} 15. Rac1 {[%clk 0:02:49]}  e5 {[%clk 0:02:40]} 16. d5 {[%clk 0:02:46]}  cxd5 {[%clk 0:02:37]} 17. Nxd5 {[%clk 0:02:47]}  Nxd5 {[%clk 0:02:37]} 18. Qxd5+ {[%clk 0:02:47]}  Kh8 {[%clk 0:02:34]} 19. Nc3 {[%clk 0:02:40]}  Bb4 {[%clk 0:02:30]} 20. Qb3 {[%clk 0:02:38]}  Bxc3 {[%clk 0:02:29]} 21. Qxc3 {[%clk 0:02:39]}  f5 {[%clk 0:02:23]} 22. h3 {[%clk 0:02:36]}  Kh7 {[%clk 0:02:20]} 23. Qc2 {[%clk 0:02:36]}  e4 {[%clk 0:02:14]} 24. g3 {[%clk 0:02:31]}  Rxd1+ {[%clk 0:02:07]} 25. Rxd1 {[%clk 0:02:31]}  Rd8 {[%clk 0:02:07]} 26. Rc1 {[%clk 0:02:30]}  Rd5 {[%clk 0:01:49]} 27. h4 {[%clk 0:02:29]}  Qd6 {[%clk 0:01:44]} 28. Qc8 {[%clk 0:02:27]}  Rd1+ {[%clk 0:01:23]} 29. Kg2 {[%clk 0:02:28]}  Rxc1 {[%clk 0:01:21]} 30. Qxc1 {[%clk 0:02:28]}  Qd5 {[%clk 0:01:18]} 31. Qc8 {[%clk 0:02:24]}  Kg6 {[%clk 0:01:13]} 32. Qe8+ {[%clk 0:02:23]}  Qf7 {[%clk 0:01:11]} 33. Qb8 {[%clk 0:02:20]}  b6 {[%clk 0:01:06]} 34. b3 {[%clk 0:02:16]}  Qd7 {[%clk 0:01:02]} 35. Qe5 {[%clk 0:02:12]}  Kh7 {[%clk 0:01:00]} 36. h5 {[%clk 0:02:12]}  Qf7 {[%clk 0:00:59]} 37. g4 {[%clk 0:02:10]}  g6 {[%clk 0:00:53]} 38. hxg6+ {[%clk 0:02:07]}  Kxg6 {[%clk 0:00:53]} 39. Kg3 {[%clk 0:02:07]}  Kg5 {[%clk 0:00:40]} 40. b4 {[%clk 0:01:59]}  h5 {[%clk 0:00:38]} 41. gxf5 {[%clk 0:01:45]}  Qxf5 {[%clk 0:00:38]} 42. Qg7+ {[%clk 0:01:46]}  Qg6 {[%clk 0:00:26]} 43. Qxg6+ {[%clk 0:01:47]}  Kxg6 {[%clk 0:00:26]} 44. Kf4 {[%clk 0:01:48]}  Kf6 {[%clk 0:00:16]} 45. Kxe4 {[%clk 0:01:47]}  Kg5 {[%clk 0:00:17]} 46. Kf3 {[%clk 0:01:48]}  Kh4 {[%clk 0:00:17]} 47. Kf4 {[%clk 0:01:46]}  b5 {[%clk 0:00:14]} 48. Kf5 {[%clk 0:01:44]}  a6 {[%clk 0:00:14]} 49. e4 {[%clk 0:01:44]}  Kh3 {[%clk 0:00:14]} 50. Kg5 {[%clk 0:01:44]}  Kg2 {[%clk 0:00:14]} 51. Kxh5 {[%clk 0:01:44]} 1-0


[Site "https://www.chess.com"]